bitfinex/quotes_SOLUSD_20250818
["timestamp","ask_amount","ask_price","bid_price","bid_amount"]
[1755525775281,13.52016809,181.73,181.7,22.6]
[1755525775478,0.06,181.75,181.68,5.50412967]
[1755525775479,13.52016809,181.71,181.68,5.50412967]
[1755525775682,0.67,181.72,181.68,5.50412967]
[1755525775893,13.52016809,181.71,181.68,5.50412967]
[1755525776265,0.67,181.72,181.68,5.50412967]
[1755525776468,43.52,181.74,181.69,0.68]
[1755525776674,44.19,181.74,181.68,5.50412967]
[1755525776886,13.52016809,181.73,181.68,5.50412967]
[1755525777088,13.52016809,181.73,181.69,0.68]
[1755525777495,13.52016809,181.71,181.68,5.50412967]
[1755525777683,0.67,181.72,181.68,5.50412967]
[1755525777869,14.19016809,181.71,181.68,5.50412967]
[1755525778074,13.52016809,181.7,181.67,5.53441132]
[1755525778299,14.19016809,181.71,181.67,5.53441132]
[1755525778596,43.52,181.74,181.68,0.68]
[1755525778896,13.52016809,181.73,181.68,14.20016809]
[1755525779065,13.52016809,181.73,181.69,5.50388023]
[1755525779488,13.52016809,181.73,181.7,0.68]
[1755525779676,57.04016809,181.74,181.69,5.50388023]
[1755525779984,14.19016809,181.73,181.69,5.50388023]
[1755525780500,13.52016809,181.7,181.67,0.03]
[1755525780700,13.52016809,181.68,181.67,0.03]
[1755525780885,14.21016809,181.68,181.67,0.03]
[1755525781070,0.69,181.68,181.67,0.03]
[1755525781407,17.84779374,181.68,181.67,0.03]
[1755525781608,14.21016809,181.68,181.67,0.03]
[1755525781776,13.52016809,181.68,181.67,0.03]
[1755525781970,15.10621557,181.73,181.67,0.03]
[1755525782175,43.38,181.72,181.67,0.03]
[1755525782406,13.52016809,181.69,181.67,0.03]
[1755525782702,13.52016809,181.68,181.67,0.03]
[1755525783002,14.21016809,181.68,181.67,0.03]
[1755525783977,13.52016809,181.69,181.67,0.03]
[1755525784315,56.82016809,181.69,181.67,0.03]
[1755525784502,13.52016809,181.68,181.67,0.03]
[1755525784876,14.21016809,181.68,181.67,0.03]
[1755525785068,17.84684657,181.68,181.67,0.03]
[1755525785270,14.21016809,181.68,181.67,0.03]
[1755525785486,43.28,181.69,181.67,0.03]
[1755525785695,56.80016809,181.69,181.67,0.03]
[1755525785879,13.52016809,181.68,181.67,0.03]
[1755525786205,14.21016809,181.68,181.67,0.03]
[1755525786387,17.84769001,181.68,181.67,0.03]
[1755525786587,32.95390558,181.68,181.67,0.03]
[1755525787070,38.45808875,181.68,181.67,0.03]
[1755525787269,28.97852836,181.68,181.67,0.03]
[1755525787496,38.45808875,181.68,181.67,0.03]
[1755525787900,61.08769001,181.68,181.67,0.03]
[1755525788070,60.39769001,181.68,181.67,0.03]
[1755525788274,47.56752192,181.68,181.67,0.03]
[1755525788474,60.39769001,181.68,181.67,0.03]
[1755525788700,56.76016809,181.68,181.67,0.03]
[1755525789218,57.45016809,181.68,181.67,0.03]
[1755525789519,17.84721987,181.68,181.67,0.03]
[1755525789712,14.21016809,181.68,181.67,0.03]
[1755525789890,46.79705178,181.68,181.67,0.03]
[1755525790083,56.68016809,181.68,181.67,0.03]
[1755525790305,60.31723215,181.68,181.67,0.03]
[1755525790472,60.29723215,181.68,181.67,0.03]
[1755525791403,23.35141532,181.68,181.67,0.03]
[1755525791701,60.94723215,181.68,181.67,0.03]
[1755525792086,47.42706406,181.68,181.67,0.03]
[1755525792307,52.93124723,181.68,181.67,0.03]
[1755525792494,81.55763089,181.68,181.67,0.03]
[1755525792686,85.59791471,181.68,181.67,0.03]
[1755525792881,85.59791471,181.68,181.63,0.03]
[1755525792882,41.10621557,181.66,181.63,0.03]
[1755525793077,32.26344772,181.66,181.63,0.03]
[1755525793308,38.45823688,181.66,181.63,0.03]
[1755525793893,54.62638366,181.64,181.63,0.03]
[1755525794203,90.25637417,181.64,181.63,0.03]
[1755525794404,47.58637417,181.64,181.63,0.03]
[1755525794606,90.66637417,181.64,181.63,0.03]
[1755525794784,86.62723215,181.64,181.63,0.03]
[1755525795185,92.13262743,181.64,181.63,0.03]
[1755525795497,86.23723215,181.64,181.63,0.03]
[1755525796121,86.19723215,181.64,181.63,0.03]
[1755525796282,43.15723215,181.64,181.63,0.03]
[1755525796483,86.19723215,181.64,181.63,0.03]
[1755525797823,86.19723215,181.64,181.63,0.71]
[1755525797824,82.56016809,181.64,181.63,0.71]
[1755525798307,39.52016809,181.64,181.63,0.71]
[1755525798505,39.52016809,181.64,181.63,0.03]
[1755525798506,82.54016809,181.64,181.63,0.03]
[1755525799404,78.54948719,181.64,181.63,0.03]
[1755525799605,86.17426,181.64,181.63,0.03]
[1755525799793,72.65409191,181.64,181.63,0.03]
[1755525800115,82.54016809,181.64,181.63,0.71]
[1755525800321,86.1774622,181.64,181.63,0.03]
[1755525800691,82.54016809,181.64,181.63,0.03]
[1755525801194,69.02,181.64,181.63,0.03]
[1755525801399,82.54016809,181.64,181.63,0.03]
[1755525801699,82.54016809,181.64,181.63,0.71]
[1755525801905,43.02,181.64,181.63,0.71]
[1755525802402,43.02,181.64,181.63,23.31]
[1755525803295,43.02,181.64,181.63,22.63]
[1755525803895,43.02,181.64,181.63,23.31]
[1755525804388,43.02,181.64,181.63,22.63]
[1755525804723,36.895745,181.64,181.63,22.63]
[1755525804924,50.41591309,181.64,181.63,22.63]
[1755525805221,54.05326048,181.64,181.63,0.03]
[1755525805392,50.41591309,181.64,181.63,0.03]
[1755525806016,60.24814003,181.64,181.63,0.03]
[1755525806321,86.24814003,181.64,181.63,0.03]
[1755525806532,47.19776052,181.64,181.63,0.03]
[1755525806841,82.32016809,181.64,181.63,0.03]
[1755525807028,85.95669591,181.64,181.63,0.03]
[1755525807213,92.15209119,181.64,181.63,0.03]
[1755525807521,96.19203896,181.64,181.63,0.03]
[1755525807713,96.19276252,181.64,181.63,0.03]
[1755525808396,85.29897809,181.64,181.63,0.03]
[1755525809426,85.29897809,181.64,181.61,0.03]
[1755525809427,41.10621557,181.62,181.61,0.03]
[1755525809719,105.04358281,181.62,181.61,0.03]
[1755525809921,105.73358281,181.62,181.61,0.03]
[1755525810942,33.67719915,181.62,181.61,0.03]
[1755525811142,46.35652782,181.62,181.61,0.71]
[1755525811439,59.87669591,181.62,181.61,0.71]
[1755525811596,59.87669591,181.62,181.61,0.03]
[1755525811796,42.72,181.62,181.61,6.21630471]
[1755525812027,0.06,181.65,181.61,6.21630471]
[1755525812326,42.7,181.64,181.62,0.68]
[1755525812495,42.7,181.64,181.63,0.68]
[1755525812698,56.22016809,181.64,181.63,0.68]
[1755525812897,42.7,181.64,181.63,0.68]
[1755525813093,42.7,181.64,181.63,0.18]
[1755525813414,42.7,181.64,181.61,19.0564728]
[1755525813926,42.7,181.64,181.61,5.53630471]
[1755525815324,0.06,181.65,181.62,0.68]
[1755525815500,42.66,181.64,181.62,6.18580158]
[1755525816198,42.66,181.64,181.63,0.68]
[1755525816622,42.66,181.65,181.63,14.20016809]
[1755525816837,42.66,181.65,181.64,14.20016809]
[1755525817028,0.06,181.65,181.64,14.20016809]
[1755525817823,0.06,181.65,181.64,19.70556337]
[1755525818432,0.06,181.67,181.65,15.10621557]
[1755525818628,0.06,181.67,181.66,28.62638366]
[1755525818808,1e-08,181.67,181.66,28.62638366]
[1755525818997,1e-08,181.67,181.66,29.30638366]
[1755525819201,1e-08,181.68,181.67,28.62638366]
[1755525819412,1e-08,181.68,181.67,29.30638366]
[1755525820216,1e-08,181.68,181.67,34.81086981]
[1755525823235,0.06,181.71,181.67,34.81086981]
[1755525823441,0.06,181.71,181.7,13.52016809]
[1755525823733,0.06,181.71,181.7,19.02374541]
[1755525823919,0.06,181.71,181.7,19.70374541]
[1755525824513,0.06,181.71,181.7,19.02374541]
[1755525824708,0.06,181.71,181.7,19.70374541]
[1755525825604,0.06,181.75,181.7,34.80996098]
[1755525825809,0.06,181.75,181.72,13.52016809]
[1755525826235,0.06,181.75,181.72,14.20016809]
[1755525826651,1e-08,181.73,181.72,65.42655175]
[1755525826939,1e-08,181.75,181.74,41.10621557]
[1755525827344,1e-08,181.75,181.74,54.62638366]
[1755525827547,42.38,181.84,181.83,13.52016809]
[1755525827714,42.38,181.84,181.83,5.49964252]
[1755525828221,43.07,181.88,181.83,5.49964252]
[1755525828540,0.69,181.87,181.83,5.49964252]
[1755525828723,0.69,181.86,181.83,5.49964252]
[1755525829124,0.69,181.85,181.83,5.49964252]
[1755525829428,0.69,181.84,181.83,5.49964252]
[1755525829629,0.69,181.84,181.81,5.50024751]
[1755525829840,0.69,181.83,181.81,5.50024751]
[1755525830031,0.69,181.82,181.81,5.50024751]
[1755525830233,0.69,181.85,181.81,19.0204156]
[1755525830737,0.69,181.84,181.81,5.50024751]
[1755525831240,0.69,181.86,181.81,5.50024751]
[1755525831442,13.52016809,181.84,181.81,5.50024751]
[1755525831612,0.69,181.83,181.81,5.50024751]
[1755525831949,43.07,181.88,181.82,13.52016809]
[1755525832250,82.59016809,181.88,181.82,13.52016809]
[1755525832742,13.52016809,181.87,181.82,22.6]
[1755525832951,42.44,181.88,181.83,13.52016809]
[1755525833155,42.44,181.88,181.83,0.68]
[1755525833345,42.44,181.88,181.84,13.52016809]
[1755525833655,42.44,181.88,181.87,13.52016809]
[1755525833824,42.44,181.88,181.86,5.49873529]
[1755525834017,0.06,181.88,181.86,6.17873529]
[1755525834244,0.06,181.88,181.86,19.01890338]
[1755525834434,0.06,181.88,181.86,19.69890338]
[1755525834631,0.06,181.88,181.87,29.30638366]
[1755525835251,0.06,181.88,181.87,15.78621557]
[1755525835433,0.06,181.88,181.87,29.30638366]
[1755525835632,0.06,181.88,181.87,34.8048166]
[1755525835826,0.06,181.88,181.87,5.49843294]
[1755525836033,0.06,181.88,181.87,19.01860103]
[1755525836337,0.06,181.88,181.87,5.49843294]
[1755525836526,0.06,181.88,181.87,19.01860103]
[1755525836890,14.27016809,181.88,181.81,5.50024751]
[1755525837017,13.52016809,181.85,181.81,5.50024751]
[1755525837217,14.21016809,181.84,181.81,5.50024751]
[1755525837754,13.52016809,181.86,181.81,19.0204156]
[1755525837913,0.06,181.88,181.84,13.52016809]
[1755525838544,0.06,181.88,181.83,13.52016809]
[1755525838849,0.06,181.88,181.83,0.68]
[1755525839036,0.75,181.88,181.83,14.20016809]
[1755525839348,0.75,181.88,181.84,13.52016809]
[1755525839647,0.06,181.88,181.84,13.52016809]
[1755525839852,0.06,181.88,181.83,5.49935907]
[1755525839853,14.21016809,181.87,181.83,5.49935907]
[1755525840058,14.21016809,181.86,181.83,5.49935907]
[1755525840219,14.21016809,181.85,181.81,5.50024751]
[1755525840556,39.52016809,181.87,181.81,6.18024751]
[1755525840758,13.52016809,181.85,181.81,5.50024751]
[1755525841252,14.18016809,181.84,181.8,16.537582]
[1755525841557,14.18016809,181.83,181.79,5.50060893]
[1755525841870,14.18016809,181.82,181.78,5.50115524]
[1755525842026,42.42,181.85,181.78,19.02132333]
[1755525842231,26.0,181.87,181.8,13.52016809]
[1755525842232,14.18016809,181.86,181.8,13.52016809]
[1755525842443,0.66,181.86,181.81,13.52016809]
[1755525842625,39.52016809,181.87,181.82,13.52016809]
[1755525842828,0.06,181.88,181.84,13.52016809]
[1755525843037,0.06,181.88,181.85,13.52016809]
[1755525843250,0.66,181.87,181.84,22.6]
[1755525843451,0.66,181.86,181.84,22.6]
[1755525843635,14.18016809,181.85,181.84,22.6]
[1755525843825,14.18016809,181.85,181.78,34.36025891]
[1755525843826,14.18016809,181.85,181.78,5.50115524]
[1755525844025,13.52016809,181.8,181.78,5.50115524]
[1755525844238,0.66,181.8,181.78,5.50115524]
[1755525844443,0.66,181.8,181.77,5.50140394]
[1755525844856,56.62016809,181.83,181.77,19.02157203]
[1755525845070,56.62016809,181.83,181.78,13.52016809]
[1755525845268,26.66,181.83,181.78,13.52016809]
[1755525845431,0.66,181.86,181.8,13.52016809]
[1755525845636,14.18016809,181.86,181.8,13.52016809]
[1755525845834,13.52016809,181.85,181.81,5.50024751]
[1755525846059,0.66,181.84,181.81,5.50024751]
[1755525846368,14.18016809,181.83,181.78,16.538493]
[1755525846535,0.66,181.82,181.77,13.75364471]
[1755525846880,0.66,181.85,181.79,13.52016809]
[1755525847052,26.0,181.87,181.81,13.52016809]
[1755525847244,81.92016809,181.87,181.81,13.52016809]
[1755525847644,81.92016809,181.87,181.82,13.52016809]
[1755525847855,14.18016809,181.86,181.82,5.499945]
[1755525848187,13.58016809,181.88,181.82,5.499945]
[1755525848343,14.18016809,181.86,181.82,5.499945]
[1755525848538,13.52016809,181.86,181.82,5.499945]
[1755525848744,0.66,181.85,181.82,5.499945]
[1755525849151,0.66,181.84,181.78,5.50115524]
[1755525849348,14.18016809,181.84,181.79,13.52016809]
[1755525849572,0.66,181.84,181.79,13.52016809]
[1755525849779,13.52016809,181.83,181.77,30.06048509]
[1755525850085,0.66,181.82,181.77,44.6417069]
[1755525850260,26.0,181.84,181.77,35.56187499]
[1755525850572,13.52016809,181.81,181.77,5.5013899]
[1755525850743,13.52016809,181.78,181.75,5.50206327]
[1755525850940,0.66,181.84,181.76,14.20016809]
[1755525851155,56.74016809,181.84,181.78,13.52016809]
[1755525851343,26.0,181.85,181.81,13.52016809]
[1755525851556,56.76016809,181.87,181.81,13.52016809]
[1755525851752,0.66,181.87,181.83,5.49964252]
[1755525852351,0.66,181.86,181.83,5.49964252]
[1755525852969,13.52016809,181.84,181.78,36.12016809]
[1755525853471,14.18016809,181.85,181.79,19.02102072]
[1755525853671,13.52016809,181.87,181.82,13.52016809]
[1755525853857,26.06,181.88,181.84,13.52016809]
[1755525854175,0.06,181.88,181.84,13.52016809]
[1755525854384,0.06,181.88,181.83,6.17964252]
[1755525854575,0.06,181.88,181.84,14.20016809]
[1755525854764,0.06,181.88,181.86,13.52016809]
[1755525855477,0.06,181.88,181.85,14.20016809]
[1755525855877,0.06,181.88,181.86,5.49873529]
[1755525857760,0.06,181.88,181.86,19.01890338]
[1755525857957,0.06,181.88,181.85,5.49903766]
[1755525858481,0.66,181.87,181.83,5.49964252]
[1755525858664,14.18016809,181.86,181.81,5.50024751]
[1755525858987,14.18016809,181.85,181.81,5.50024751]
[1755525859367,13.52016809,181.84,181.81,5.50024751]
[1755525859558,14.18016809,181.84,181.81,5.50024751]
[1755525859759,14.18016809,181.83,181.8,5.50045832]
[1755525860055,0.66,181.83,181.8,5.50045832]
[1755525860263,4.27696386,181.83,181.8,5.50045832]
[1755525860673,3.61696386,181.83,181.8,5.50045832]
[1755525860995,3.61696386,181.83,181.78,19.02132333]
[1755525861291,13.52016809,181.82,181.78,5.50115524]
[1755525861491,13.52016809,181.8,181.78,5.50115524]
[1755525861653,17.15287945,181.81,181.78,5.50115524]
[1755525861858,3.63271136,181.81,181.78,5.50115524]
[1755525862060,17.15286842,181.8,181.77,5.50140511]
[1755525862289,17.15575109,181.79,181.77,5.50140511]
[1755525862458,13.52016809,181.79,181.77,5.50140511]
[1755525862655,3.63553349,181.78,181.76,5.50167955]
[1755525862960,13.52016809,181.78,181.75,0.03]
[1755525863358,13.52016809,181.79,181.75,0.03]
[1755525863590,3.63854009,181.78,181.75,0.03]
[1755525863884,13.52016809,181.79,181.75,0.03]
[1755525864186,3.63854009,181.78,181.75,0.03]
[1755525864483,3.63870848,181.77,181.75,0.03]
[1755525864689,17.15887657,181.76,181.75,0.03]
[1755525864985,3.63870848,181.76,181.75,0.03]
[1755525867772,17.81887657,181.76,181.75,0.03]
[1755525868197,3.63870848,181.76,181.75,0.03]
[1755525868683,4.29870848,181.76,181.75,0.03]
[1755525868879,21.86024619,181.76,181.75,0.03]
[1755525869088,64.22024619,181.76,181.75,0.03]
[1755525869283,60.17887657,181.76,181.75,0.03]
[1755525869603,46.65870848,181.76,181.75,0.03]
[1755525869771,3.63870848,181.76,181.75,0.03]
[1755525870313,3.63870848,181.76,181.75,0.71]
[1755525870596,13.52016809,181.79,181.75,0.03]
[1755525870807,13.52016809,181.8,181.75,14.27016809]
[1755525871003,3.63912535,181.79,181.75,14.27016809]
[1755525871177,3.63912535,181.78,181.75,0.75]
[1755525871382,14.22016809,181.8,181.75,0.75]
[1755525871383,3.63912535,181.79,181.75,0.75]
[1755525871583,13.52016809,181.8,181.75,14.27016809]
[1755525871788,13.52016809,181.78,181.75,0.03]
[1755525872193,0.7,181.77,181.75,0.03]
[1755525872528,14.22016809,181.77,181.75,0.03]
[1755525872698,13.52016809,181.76,181.75,0.03]
[1755525872904,14.22016809,181.76,181.75,0.03]
[1755525873111,0.7,181.76,181.75,0.03]
[1755525873304,14.22016809,181.76,181.75,0.03]
[1755525873614,0.7,181.76,181.75,0.03]
[1755525874016,26.0,181.79,181.75,0.03]
[1755525874194,68.36,181.79,181.75,0.03]
[1755525874515,68.36,181.79,181.75,0.75]
[1755525874685,13.52016809,181.8,181.75,14.27016809]
[1755525874885,17.15846234,181.8,181.75,14.27016809]
[1755525875088,3.63829425,181.8,181.76,14.24016809]
[1755525875286,26.0,181.81,181.77,0.72]
[1755525875719,42.36,181.82,181.75,22.63]
[1755525875913,42.36,181.82,181.79,5.50085263]
[1755525876622,13.52016809,181.81,181.79,5.50085263]
[1755525876789,4.50739003,181.87,181.77,5.50145788]
[1755525876790,13.52016809,181.8,181.77,5.50145788]
[1755525876999,13.52016809,181.79,181.77,5.50145788]
[1755525877203,14.22016809,181.79,181.75,28.13181686]
[1755525877403,0.7,181.78,181.75,5.53181686]
[1755525877610,13.52016809,181.76,181.75,0.03]
[1755525878013,14.22016809,181.76,181.75,0.03]
[1755525879514,0.7,181.76,181.75,0.03]
[1755525879839,26.0,181.77,181.75,5.53206327]
[1755525880117,39.52016809,181.77,181.75,5.53206327]
[1755525880497,13.52016809,181.79,181.75,5.53206327]
[1755525880820,17.15691833,181.79,181.75,5.53206327]
[1755525880995,17.85691833,181.79,181.75,5.53206327]
[1755525881194,13.52016809,181.78,181.75,5.53206327]
[1755525881421,13.52016809,181.78,181.75,0.03]
[1755525882117,14.22016809,181.78,181.75,0.03]
[1755525882314,13.52016809,181.78,181.75,0.03]
[1755525882511,42.36,181.8,181.75,0.03]
[1755525882714,68.36,181.81,181.76,14.24016809]
[1755525883020,68.36,181.81,181.77,0.72]
[1755525883319,68.36,181.81,181.78,19.02132333]
[1755525883320,26.0,181.81,181.78,19.02132333]
[1755525883520,26.0,181.81,181.78,19.74132333]
[1755525883731,13.52016809,181.8,181.76,5.50148881]
[1755525884028,0.7,181.79,181.76,5.50148881]
[1755525884322,68.36,181.81,181.77,0.72]
[1755525884531,14.22016809,181.8,181.76,5.50148881]
[1755525886128,81.88016809,181.81,181.76,5.50148881]
[1755525886437,82.58016809,181.81,181.76,6.22148881]
[1755525886612,13.52016809,181.8,181.76,6.22148881]
[1755525886949,14.22016809,181.8,181.76,5.50148881]
[1755525887110,14.22016809,181.8,181.76,6.22148881]
[1755525887111,13.52016809,181.8,181.76,6.22148881]
[1755525887420,14.22016809,181.79,181.76,5.50148881]
[1755525887625,14.22016809,181.78,181.76,5.50148881]
[1755525887821,14.22016809,181.78,181.75,5.53199507]
[1755525888006,13.52016809,181.77,181.75,0.03]
[1755525888332,13.52016809,181.76,181.75,0.03]
[1755525888829,14.22016809,181.76,181.75,0.03]
[1755525890506,0.7,181.76,181.75,0.03]
[1755525890830,13.52016809,181.76,181.75,0.03]
[1755525891327,14.22016809,181.76,181.75,0.03]
[1755525891627,13.52016809,181.76,181.75,0.03]
[1755525891931,14.22016809,181.76,181.75,0.03]
[1755525893219,42.36,181.77,181.75,0.03]
[1755525894360,68.34,181.79,181.75,0.75]
[1755525894633,42.34,181.79,181.76,14.24016809]
[1755525894830,42.36,181.81,181.77,0.72]
[1755525895025,42.36,181.81,181.78,13.52016809]
[1755525895248,13.58016809,181.84,181.79,0.72]
[1755525895249,0.76,181.84,181.79,0.72]
[1755525895538,42.36,181.83,181.79,0.72]
[1755525895713,0.06,181.82,181.8,0.72]
[1755525895919,0.06,181.82,181.81,14.24016809]
[1755525896427,0.06,181.82,181.81,19.7404156]
[1755525897848,0.06,181.82,181.81,5.50024751]
[1755525898052,0.06,181.82,181.79,5.50085263]
[1755525899448,0.06,181.82,181.79,19.74102072]
[1755525899640,0.06,181.82,181.81,13.52016809]
[1755525900144,0.06,181.82,181.81,14.24016809]
[1755525900354,0.06,181.84,181.81,40.24016809]
[1755525900647,0.06,181.87,181.83,58.76891691]
[1755525900850,0.06,181.87,181.86,13.52016809]
[1755525901414,0.06,181.87,181.86,14.22016809]
[1755525901839,0.06,181.87,181.85,13.52016809]
[1755525902040,0.06,181.87,181.86,13.52016809]
[1755525902435,0.06,181.87,181.86,14.22016809]
[1755525902834,0.06,181.87,181.86,6.19873529]
[1755525903028,1e-08,181.88,181.86,42.31890338]
[1755525903236,1e-08,181.88,181.87,14.22016809]
[1755525904828,1e-08,181.88,181.87,19.71860103]
[1755525907247,1e-08,181.89,181.88,28.62638366]
[1755525907427,1e-08,181.89,181.88,29.32638366]
[1755525907830,1e-08,181.89,181.88,51.92638366]
[1755525908253,1e-08,181.89,181.88,29.32638366]
[1755525908840,1e-08,181.89,181.88,34.82451429]
[1755525909239,0.69,181.99,181.91,26.0]
[1755525909440,0.69,182.01,181.93,26.0]
[1755525909680,0.69,182.01,181.94,41.80621557]
[1755525909967,0.69,182.01,181.97,13.52016809]
[1755525910347,0.69,182.0,181.97,13.52016809]
[1755525910542,0.69,182.0,181.94,41.80621557]
[1755525910767,13.52016809,181.96,181.92,5.49692172]
[1755525910943,0.69,181.96,181.92,5.49692172]
[1755525911141,0.69,181.96,181.92,19.01708981]
[1755525911345,14.21016809,181.99,181.94,13.52016809]
[1755525911543,14.21016809,181.98,181.92,19.23922602]
[1755525911758,14.21016809,181.98,181.92,32.75939411]
[1755525911972,14.21016809,181.98,181.93,13.52016809]
[1755525912249,0.69,181.97,181.93,13.52016809]
[1755525912460,26.0,182.01,181.93,14.22016809]
[1755525912642,13.52016809,181.99,181.93,0.7]
[1755525912977,13.52016809,181.99,181.92,19.23922602]
[1755525913268,0.69,181.98,181.92,19.23922602]
[1755525913573,13.52016809,181.97,181.92,19.23922602]
[1755525913875,0.69,181.97,181.92,19.71708981]
[1755525914177,14.21016809,182.0,181.94,13.52016809]
[1755525914340,14.21016809,182.0,181.95,13.52016809]
[1755525914541,0.69,182.0,181.97,13.52016809]
[1755525914785,0.69,182.0,181.97,36.12016809]
[1755525915072,0.69,182.02,181.98,5.49510935]
[1755525915274,0.69,182.01,181.98,5.49510935]
[1755525915579,14.21016809,182.0,181.97,28.09535503]
[1755525915783,0.69,181.99,181.97,28.09535503]
[1755525916153,0.69,181.98,181.97,28.09535503]
[1755525916551,0.69,181.98,181.95,5.49601538]
[1755525917188,14.21016809,181.97,181.95,5.49601538]
[1755525917376,14.21016809,181.96,181.91,27.26294184]
[1755525917551,0.69,181.95,181.92,5.49692172]
[1755525917751,14.21016809,181.95,181.92,5.49692172]
[1755525917990,14.21016809,181.94,181.92,5.49692172]
[1755525918361,13.52016809,181.94,181.92,5.49692172]
[1755525918570,13.52016809,181.94,181.88,27.96501443]
[1755525918571,0.69,181.93,181.89,5.49782835]
[1755525918984,0.69,181.92,181.89,5.49782835]
[1755525919513,13.52016809,181.94,181.89,6.19782835]
[1755525919671,26.0,181.95,181.89,6.19782835]
[1755525919987,13.52016809,181.93,181.89,5.49782835]
[1755525920286,0.69,181.94,181.89,5.49782835]
[1755525920479,0.69,181.93,181.89,5.49782835]
[1755525920678,0.69,181.93,181.87,5.49843294]
[1755525920880,0.69,181.92,181.87,5.49843294]
[1755525921059,0.69,181.92,181.87,6.19843294]
[1755525921253,0.69,181.94,181.88,0.7]
[1755525921455,0.69,181.94,181.87,19.2445153]
[1755525922276,13.52016809,181.92,181.87,32.76468339]
[1755525922482,0.69,181.94,181.88,0.7]
[1755525922655,42.28,181.98,181.9,5.49752611]
[1755525922855,14.21016809,181.97,181.91,0.7]
[1755525923081,13.52016809,181.96,181.91,0.7]
[1755525923466,14.21016809,181.96,181.91,0.7]
[1755525923879,2.86810356,182.05,181.94,13.52016809]
[1755525924103,0.69,182.02,181.97,13.52016809]
[1755525924387,13.52016809,182.02,181.98,0.7]
[1755525924585,0.69,182.04,181.99,0.7]
[1755525924787,0.69,182.04,182.0,19.23076922]
[1755525924966,42.26,182.05,182.01,0.7]
[1755525925167,0.69,182.04,182.0,19.23076922]
[1755525925371,55.78016809,182.05,182.0,5.49450549]
[1755525925372,13.52016809,182.02,182.0,5.49450549]
[1755525925567,13.52016809,182.01,182.0,5.49450549]
[1755525926167,13.52016809,182.01,181.98,5.49510935]
[1755525926386,13.58016809,182.03,181.98,6.19510935]
[1755525926691,0.06,182.03,182.01,5.49420361]
[1755525927080,0.06,182.03,182.01,19.0143717]
[1755525927276,0.06,182.03,182.02,14.22016809]
[1755525927458,0.69,182.1,182.02,14.22016809]
[1755525927664,13.52016809,182.11,182.05,13.52016809]
[1755525927865,3.61211601,182.12,182.07,13.52016809]
[1755525928068,13.52016809,182.12,182.07,0.7]
[1755525928471,13.52016809,182.12,182.06,13.52016809]
[1755525928472,14.21016809,182.12,182.06,13.52016809]
[1755525928670,0.69,182.12,182.06,13.52016809]
[1755525928882,14.21016809,182.12,182.07,5.49239303]
[1755525929083,13.52016809,182.11,182.07,5.49239303]
[1755525929273,14.21016809,182.11,182.07,5.49239303]
[1755525929467,0.69,182.11,182.07,5.49239303]
[1755525929668,14.21016809,182.11,182.07,5.49239303]
[1755525929895,14.21016809,182.1,182.07,5.49239303]
[1755525930276,13.52016809,182.11,182.07,5.49239303]
[1755525930696,0.69,182.13,182.07,5.49239303]
[1755525930888,15.10621557,182.17,182.08,14.17016809]
[1755525931077,13.52016809,182.13,182.08,14.17016809]
[1755525931401,14.19016809,182.13,182.08,0.65]
[1755525931571,0.67,182.13,182.08,14.17016809]
[1755525931772,14.19016809,182.12,182.07,19.22337561]
[1755525932278,13.52016809,182.13,182.08,14.17016809]
[1755525932476,13.52016809,182.13,182.09,0.65]
[1755525932678,13.52016809,182.14,182.09,0.65]
[1755525932885,42.91,182.15,182.1,5.49148819]
[1755525933093,14.19016809,182.14,182.1,5.49148819]
[1755525933306,42.24,182.15,182.11,0.65]
[1755525933493,42.24,182.15,182.1,19.01165628]